[Event "Early-Titled-Tuesday-Blitz-January-30-2024"]
[Site "Chess.com"]
[Date "2024.01.30"]
[Round "4"]
[White "Harry_Rakkel"]
[Black "bilosuvenosu06"]
[Result "0-1"]
[WhiteElo "2708"]
[BlackElo "2538"]
[TimeControl "180+1"]
[EndTime "8:41:32 PST"]
[Termination "bilosuvenosu06 won on time"]

1. e4 {[%clk 0:03:00.9]} 1... c5 {[%clk 0:02:58.8]} 2. Nf3 {[%clk 0:03:00.4]}
2... e6 {[%clk 0:02:58.4]} 3. d4 {[%clk 0:03:00.3]} 3... cxd4 {[%clk 0:02:59.3]}
4. Nxd4 {[%clk 0:03:00.3]} 4... a6 {[%clk 0:02:57.9]} 5. c4 {[%clk 0:02:59.9]}
5... Nc6 {[%clk 0:02:57.3]} 6. Be3 {[%clk 0:02:48.1]} 6... Nf6 {[%clk
0:02:55.5]} 7. Nc3 {[%clk 0:02:44]} 7... d6 {[%clk 0:02:49.9]} 8. Be2 {[%clk
0:02:36.4]} 8... Bd7 {[%clk 0:02:49.5]} 9. O-O {[%clk 0:02:35.7]} 9... Be7
{[%clk 0:02:49.6]} 10. f3 {[%clk 0:02:12.9]} 10... Rc8 {[%clk 0:02:49.1]} 11.
Qd2 {[%clk 0:02:10.4]} 11... O-O {[%clk 0:02:46.4]} 12. Rac1 {[%clk 0:02:09]}
12... Nxd4 {[%clk 0:02:35.1]} 13. Bxd4 {[%clk 0:02:08.2]} 13... Bc6 {[%clk
0:02:31.5]} 14. Rfd1 {[%clk 0:02:05.2]} 14... h6 {[%clk 0:02:29.8]} 15. Bf1
{[%clk 0:02:00.1]} 15... Nd7 {[%clk 0:01:55]} 16. Kh1 {[%clk 0:01:58.4]} 16...
Ne5 {[%clk 0:01:47.7]} 17. Qf2 {[%clk 0:01:51.6]} 17... Qc7 {[%clk 0:01:32.7]}
18. a4 {[%clk 0:01:43.4]} 18... Qb8 {[%clk 0:01:21.5]} 19. b4 {[%clk 0:01:39.9]}
19... Rfd8 {[%clk 0:01:14.7]} 20. Ba7 {[%clk 0:01:36.1]} 20... Qa8 {[%clk
0:01:11.9]} 21. Bb6 {[%clk 0:01:36]} 21... Rf8 {[%clk 0:01:06.8]} 22. b5 {[%clk
0:01:32.8]} 22... Bd7 {[%clk 0:01:02.5]} 23. c5 {[%clk 0:01:18.5]} 23... Bd8
{[%clk 0:00:27.7]} 24. Bxd8 {[%clk 0:00:49.2]} 24... Rfxd8 {[%clk 0:00:27.3]}
25. Rxd6 {[%clk 0:00:49.5]} 25... axb5 {[%clk 0:00:20.2]} 26. f4 {[%clk
0:00:48.1]} 26... Nc4 {[%clk 0:00:19.9]} 27. Bxc4 {[%clk 0:00:44.3]} 27... bxc4
{[%clk 0:00:20.8]} 28. Qd4 {[%clk 0:00:38.7]} 28... Bc6 {[%clk 0:00:20.8]} 29.
f5 {[%clk 0:00:36.8]} 29... Rxd6 {[%clk 0:00:20.6]} 30. cxd6 {[%clk 0:00:36.5]}
30... exf5 {[%clk 0:00:19.8]} 31. exf5 {[%clk 0:00:37.4]} 31... b5 {[%clk
0:00:19.6]} 32. axb5 {[%clk 0:00:18.7]} 32... Bxg2+ {[%clk 0:00:19.5]} 33. Kg1
{[%clk 0:00:19.4]} 33... Bh3 {[%clk 0:00:20.4]} 34. Qd5 {[%clk 0:00:13.2]} 34...
Qa3 {[%clk 0:00:18.8]} 35. Qd2 {[%clk 0:00:11.1]} 35... Qc5+ {[%clk 0:00:18.8]}
36. Kh1 {[%clk 0:00:09.8]} 36... Rd8 {[%clk 0:00:19.2]} 37. d7 {[%clk
0:00:08.2]} 37... Qxf5 {[%clk 0:00:18]} 38. Re1 {[%clk 0:00:07]} 38... Qf3+
{[%clk 0:00:17.8]} 39. Kg1 {[%clk 0:00:07.4]} 39... Qg4+ {[%clk 0:00:18.2]} 40.
Kh1 {[%clk 0:00:07.8]} 40... Qxd7 {[%clk 0:00:18.4]} 41. Qxd7 {[%clk 0:00:07.2]}
41... Rxd7 {[%clk 0:00:19.3]} 42. Kg1 {[%clk 0:00:06.5]} 42... Be6 {[%clk
0:00:19.3]} 43. Kf2 {[%clk 0:00:06.5]} 43... Rd3 {[%clk 0:00:19.9]} 44. Rc1
{[%clk 0:00:06.1]} 44... Rd2+ {[%clk 0:00:20.4]} 45. Ke3 {[%clk 0:00:05.5]}
45... Rb2 {[%clk 0:00:21.3]} 46. Rb1 {[%clk 0:00:05.3]} 46... Rxb1 {[%clk
0:00:21.1]} 47. Nxb1 {[%clk 0:00:06.2]} 47... Kf8 {[%clk 0:00:20.8]} 48. Kd4
{[%clk 0:00:05.5]} 48... Ke8 {[%clk 0:00:21.2]} 49. Nc3 {[%clk 0:00:04.1]} 49...
Kd7 {[%clk 0:00:21.8]} 50. Kc5 {[%clk 0:00:04.5]} 50... Kc7 {[%clk 0:00:22.2]}
51. b6+ {[%clk 0:00:03.8]} 51... Kb7 {[%clk 0:00:22.8]} 52. Nb5 {[%clk
0:00:03.9]} 52... f5 {[%clk 0:00:22.4]} 53. Nd6+ {[%clk 0:00:02.2]} 53... Kb8
{[%clk 0:00:22.9]} 0-1

[Event "Early-Titled-Tuesday-Blitz-January-30-2024"]
[Site "Chess.com"]
[Date "2024.01.30"]
[Round "4"]
[White "DefiantChair"]
[Black "Akylbek2021"]
[Result "1-0"]
[WhiteElo "2594"]
[BlackElo "2283"]
[TimeControl "180+1"]
[EndTime "8:41:32 PST"]
[Termination "DefiantChair won on time"]

1. e4 {[%clk 0:03:00.9]} 1... e5 {[%clk 0:02:57.9]} 2. Nf3 {[%clk 0:03:00.6]}
2... Nc6 {[%clk 0:02:58.3]} 3. Bb5 {[%clk 0:03:00.6]} 3... a6 {[%clk 0:02:58.4]}
4. Ba4 {[%clk 0:03:01]} 4... Nf6 {[%clk 0:02:58.5]} 5. O-O {[%clk 0:02:59.9]}
5... Be7 {[%clk 0:02:59.1]} 6. Re1 {[%clk 0:03:00]} 6... b5 {[%clk 0:02:59.7]}
7. Bb3 {[%clk 0:02:59.9]} 7... O-O {[%clk 0:03:00.1]} 8. c3 {[%clk 0:02:59.3]}
8... d5 {[%clk 0:03:00.3]} 9. exd5 {[%clk 0:03:00.1]} 9... Nxd5 {[%clk
0:03:01.2]} 10. Nxe5 {[%clk 0:02:59.9]} 10... Nxe5 {[%clk 0:03:01.8]} 11. Rxe5
{[%clk 0:03:00.4]} 11... Nf6 {[%clk 0:03:02.5]} 12. d3 {[%clk 0:02:58.6]} 12...
Bd6 {[%clk 0:03:00.6]} 13. Re1 {[%clk 0:02:58]} 13... Ng4 {[%clk 0:03:00.7]} 14.
h3 {[%clk 0:02:55.1]} 14... Qh4 {[%clk 0:03:00.8]} 15. Qf3 {[%clk 0:02:54.2]}
15... Nxf2 {[%clk 0:02:47.9]} 16. Re2 {[%clk 0:02:46.6]} 16... Nxh3+ {[%clk
0:02:22.6]} 17. gxh3 {[%clk 0:02:43.9]} 17... Bxh3 {[%clk 0:02:22.6]} 18. Re4
{[%clk 0:02:24]} 18... Qg3+ {[%clk 0:01:04.2]} 19. Qxg3 {[%clk 0:02:07.4]} 19...
Bxg3 {[%clk 0:01:05.1]} 20. Re3 {[%clk 0:02:06.2]} 20... Bf4 {[%clk 0:01:03.7]}
21. Re1 {[%clk 0:01:54.3]} 21... Bg3 {[%clk 0:00:52.2]} 22. Re4 {[%clk
0:01:50.7]} 22... Rae8 {[%clk 0:00:38.3]} 23. Be3 {[%clk 0:01:45]} 23... Bf5
{[%clk 0:00:31.5]} 24. Rxe8 {[%clk 0:01:22.2]} 24... Rxe8 {[%clk 0:00:32.4]} 25.
Bf2 {[%clk 0:01:22.1]} 25... Bxf2+ {[%clk 0:00:24.1]} 26. Kxf2 {[%clk 0:01:23]}
26... Bxd3 {[%clk 0:00:25]} 27. Bd1 {[%clk 0:01:22.3]} 27... f5 {[%clk
0:00:11.9]} 28. Nd2 {[%clk 0:01:19.6]} 28... g5 {[%clk 0:00:11.1]} 29. a4 {[%clk
0:01:19]} 29... g4 {[%clk 0:00:04.6]} 30. axb5 {[%clk 0:01:17.9]} 30... axb5
{[%clk 0:00:04.4]} 31. Ra7 {[%clk 0:01:16.3]} 31... Re7 {[%clk 0:00:04.9]} 32.
Nb3 {[%clk 0:01:12.7]} 32... h5 {[%clk 0:00:03.2]} 33. Nc5 {[%clk 0:01:11.5]}
33... Bc4 {[%clk 0:00:03.4]} 34. b3 {[%clk 0:01:08.3]} 34... Bd5 {[%clk
0:00:03.9]} 35. Nd3 {[%clk 0:00:51.6]} 35... h4 {[%clk 0:00:02.8]} 36. Nf4
{[%clk 0:00:51.5]} 36... Be4 {[%clk 0:00:01.7]} 37. Ng6 {[%clk 0:00:43.6]} 37...
Rd7 {[%clk 0:00:02.2]} 38. Be2 {[%clk 0:00:42.1]} 38... h3 {[%clk 0:00:02.6]}
39. Kg3 {[%clk 0:00:38.8]} 39... h2 {[%clk 0:00:03.1]} 40. Kxh2 {[%clk 0:00:36]}
40... Rd2 {[%clk 0:00:03.6]} 41. Nf4 {[%clk 0:00:36.1]} 41... Bd3 {[%clk
0:00:02.9]} 42. Rxc7 {[%clk 0:00:28.6]} 42... Bxe2 {[%clk 0:00:02.5]} 43. Kg3
{[%clk 0:00:29.3]} 43... Rc2 {[%clk 0:00:02]} 44. Rc5 {[%clk 0:00:26.1]} 44...
Bf1 {[%clk 0:00:01.6]} 45. b4 {[%clk 0:00:22.1]} 1-0

[Event "Early-Titled-Tuesday-Blitz-January-30-2024"]
[Site "Chess.com"]
[Date "2024.01.30"]
[Round "4"]
[White "ilqar_74"]
[Black "ural58"]
[Result "1-0"]
[WhiteElo "2841"]
[BlackElo "2456"]
[TimeControl "180+1"]
[EndTime "8:41:32 PST"]
[Termination "ilqar_74 won by resignation"]

1. e4 {[%clk 0:03:00.9]} 1... d5 {[%clk 0:02:48.6]} 2. exd5 {[%clk 0:02:41.2]}
2... Qxd5 {[%clk 0:02:48.3]} 3. Nc3 {[%clk 0:02:41.7]} 3... Qa5 {[%clk 0:02:48]}
4. d4 {[%clk 0:02:41.9]} 4... Nf6 {[%clk 0:02:48]} 5. a3 {[%clk 0:02:42.1]} 5...
e5 {[%clk 0:02:33]} 6. dxe5 {[%clk 0:02:38.8]} 6... Ne4 {[%clk 0:02:29.8]} 7.
Bd2 {[%clk 0:02:28.7]} 7... Nxd2 {[%clk 0:02:26.6]} 8. Qxd2 {[%clk 0:02:29.2]}
8... Bg4 {[%clk 0:02:13.2]} 9. Nd5 {[%clk 0:02:19.4]} 9... Qxd2+ {[%clk
0:02:12.1]} 10. Kxd2 {[%clk 0:02:19.5]} 10... Na6 {[%clk 0:01:55.5]} 11. Bxa6
{[%clk 0:02:17]} 11... O-O-O {[%clk 0:01:56.1]} 12. Bc4 {[%clk 0:02:15.6]} 12...
c6 {[%clk 0:01:55.3]} 13. Ne2 {[%clk 0:02:14.7]} 13... Bc5 {[%clk 0:01:50.2]}
14. f3 {[%clk 0:02:10.3]} 14... Be6 {[%clk 0:01:48.7]} 15. Nf4 {[%clk
0:02:08.1]} 15... cxd5 {[%clk 0:01:46.7]} 16. Bd3 {[%clk 0:02:07.8]} 16... g5
{[%clk 0:01:45.2]} 17. Nxe6 {[%clk 0:02:06.4]} 17... fxe6 {[%clk 0:01:45.8]} 18.
c3 {[%clk 0:02:06.6]} 18... h5 {[%clk 0:01:45.1]} 19. Rae1 {[%clk 0:02:04.7]}
19... Rdf8 {[%clk 0:01:42.4]} 20. Rhf1 {[%clk 0:02:04.4]} 20... a6 {[%clk
0:01:38.9]} 21. c4 {[%clk 0:02:04.5]} 21... Rd8 {[%clk 0:01:02.2]} 22. cxd5
{[%clk 0:02:03.9]} 22... Rxd5 {[%clk 0:01:01.7]} 23. Kc2 {[%clk 0:02:02.6]}
23... Bb6 {[%clk 0:00:50.9]} 24. Bc4 {[%clk 0:02:00.7]} 24... Rc5 {[%clk
0:00:51]} 25. Kb3 {[%clk 0:01:58]} 25... Re8 {[%clk 0:00:50.1]} 26. Re4 {[%clk
0:01:57.3]} 26... Bc7 {[%clk 0:00:50.1]} 27. Rfe1 {[%clk 0:01:55.5]} 27... b5
{[%clk 0:00:50.4]} 28. Bd3 {[%clk 0:01:49.9]} 28... Rd8 {[%clk 0:00:50.5]} 29.
Bc2 {[%clk 0:01:50.1]} 29... Rdd5 {[%clk 0:00:50]} 30. h4 {[%clk 0:01:48]} 30...
gxh4 {[%clk 0:00:47.3]} 31. Rxh4 {[%clk 0:01:48.9]} 31... Rxe5 {[%clk
0:00:47.6]} 32. Ree4 {[%clk 0:01:45.5]} 32... a5 {[%clk 0:00:44.9]} 33. Rxe5
{[%clk 0:01:44.5]} 33... Rxe5 {[%clk 0:00:44.7]} 34. Be4 {[%clk 0:01:43.5]}
34... a4+ {[%clk 0:00:44.3]} 35. Kc3 {[%clk 0:01:43.3]} 35... Bb6 {[%clk
0:00:44]} 36. Rh1 {[%clk 0:01:40]} 36... Rc5+ {[%clk 0:00:43.6]} 37. Kd3 {[%clk
0:01:40]} 37... Rg5 {[%clk 0:00:42.9]} 38. f4 {[%clk 0:01:37.6]} 38... Rg3+
{[%clk 0:00:36.6]} 39. Bf3 {[%clk 0:01:37.2]} 39... Bc7 {[%clk 0:00:34.6]} 40.
Ke4 {[%clk 0:01:33.2]} 40... Rg8 {[%clk 0:00:25.4]} 41. Rxh5 {[%clk 0:01:32.6]}
41... Rf8 {[%clk 0:00:25.7]} 42. g3 {[%clk 0:01:31.8]} 42... Rg8 {[%clk
0:00:23.7]} 43. Rxb5 {[%clk 0:01:27]} 43... Rxg3 {[%clk 0:00:22.7]} 44. Rb4
{[%clk 0:01:26.7]} 44... Rh3 {[%clk 0:00:18.6]} 45. Bg4 {[%clk 0:01:18.9]} 45...
Rh6 {[%clk 0:00:13.1]} 46. Rxa4 {[%clk 0:01:16.7]} 46... Rf6 {[%clk 0:00:13.7]}
47. Ke3 {[%clk 0:01:15.6]} 47... Kb7 {[%clk 0:00:14.1]} 48. Re4 {[%clk
0:01:12.4]} 48... Bb6+ {[%clk 0:00:14.4]} 49. Kf3 {[%clk 0:01:12.5]} 49... Bc7
{[%clk 0:00:14.7]} 50. Bxe6 {[%clk 0:01:11.5]} 50... Kc6 {[%clk 0:00:15]} 51. b4
{[%clk 0:01:07.9]} 51... Kb5 {[%clk 0:00:14.1]} 52. Bd7+ {[%clk 0:01:05.1]}
52... Kb6 {[%clk 0:00:12.6]} 53. a4 {[%clk 0:01:02.7]} 53... Kb7 {[%clk
0:00:11.7]} 54. f5 {[%clk 0:00:58.4]} 54... Rd6 {[%clk 0:00:11.5]} 55. Be6
{[%clk 0:00:58.5]} 55... Rd3+ {[%clk 0:00:11.8]} 56. Ke2 {[%clk 0:00:56.9]}
56... Ra3 {[%clk 0:00:11]} 57. a5 {[%clk 0:00:53.5]} 57... Bd8 {[%clk
0:00:09.3]} 58. Bd5+ {[%clk 0:00:48.9]} 58... Kc7 {[%clk 0:00:08.9]} 59. Re6
{[%clk 0:00:47.7]} 59... Ra4 {[%clk 0:00:08.9]} 60. Rb6 {[%clk 0:00:43.8]} 60...
Kd7 {[%clk 0:00:08]} 61. Bc6+ {[%clk 0:00:42.9]} 1-0

[Event "Early-Titled-Tuesday-Blitz-January-30-2024"]
[Site "Chess.com"]
[Date "2024.01.30"]
[Round "4"]
[White "mitrabhaa"]
[Black "LyonBeast"]
[Result "1-0"]
[WhiteElo "2924"]
[BlackElo "3148"]
[TimeControl "180+1"]
[EndTime "8:41:33 PST"]
[Termination "mitrabhaa won by resignation"]

1. d4 {[%clk 0:03:00.9]} 1... Nf6 {[%clk 0:02:59.7]} 2. Nf3 {[%clk 0:03:00.5]}
2... d5 {[%clk 0:02:57.7]} 3. Bf4 {[%clk 0:02:59.2]} 3... c5 {[%clk 0:02:54.2]}
4. e3 {[%clk 0:02:59.2]} 4... Nc6 {[%clk 0:02:54.5]} 5. Nbd2 {[%clk 0:02:59]}
5... Nh5 {[%clk 0:02:53.6]} 6. Be5 {[%clk 0:02:58.8]} 6... e6 {[%clk 0:02:45.4]}
7. c3 {[%clk 0:02:57.8]} 7... f6 {[%clk 0:02:33.2]} 8. Bg3 {[%clk 0:02:57.7]}
8... Be7 {[%clk 0:02:24.7]} 9. Bd3 {[%clk 0:02:55.5]} 9... f5 {[%clk 0:02:19.1]}
10. Qe2 {[%clk 0:02:37.2]} 10... c4 {[%clk 0:02:11.9]} 11. Bc2 {[%clk
0:02:37.2]} 11... b5 {[%clk 0:02:11.7]} 12. a3 {[%clk 0:02:36.2]} 12... O-O
{[%clk 0:02:09.7]} 13. Ne5 {[%clk 0:02:34.9]} 13... Nxg3 {[%clk 0:02:09.4]} 14.
hxg3 {[%clk 0:02:16.8]} 14... Nxe5 {[%clk 0:02:02]} 15. dxe5 {[%clk 0:02:17.7]}
15... g6 {[%clk 0:02:02]} 16. f4 {[%clk 0:02:16.5]} 16... h5 {[%clk 0:01:49.2]}
17. Nf3 {[%clk 0:02:14.2]} 17... Kg7 {[%clk 0:01:49.4]} 18. Nd4 {[%clk
0:02:14.2]} 18... Bd7 {[%clk 0:01:49.8]} 19. Kf2 {[%clk 0:02:09.6]} 19... Rh8
{[%clk 0:01:49.4]} 20. Rh2 {[%clk 0:02:05]} 20... a5 {[%clk 0:01:47.7]} 21. Rhh1
{[%clk 0:02:04.6]} 21... Bc5 {[%clk 0:01:45.3]} 22. Kf3 {[%clk 0:02:04.2]} 22...
Qe7 {[%clk 0:01:37.6]} 23. Qd2 {[%clk 0:02:03.2]} 23... b4 {[%clk 0:01:36.3]}
24. axb4 {[%clk 0:02:03.1]} 24... axb4 {[%clk 0:01:37.2]} 25. Rxa8 {[%clk
0:01:55.2]} 25... Rxa8 {[%clk 0:01:38.1]} 26. Rb1 {[%clk 0:01:54.2]} 26... b3
{[%clk 0:01:32.7]} 27. Bd1 {[%clk 0:01:54.3]} 27... g5 {[%clk 0:01:29.8]} 28.
Kf2 {[%clk 0:01:50.2]} 28... g4 {[%clk 0:01:29.7]} 29. Be2 {[%clk 0:01:50.1]}
29... h4 {[%clk 0:01:27.6]} 30. Rh1 {[%clk 0:01:48.8]} 30... Rh8 {[%clk
0:01:18.2]} 31. gxh4 {[%clk 0:01:39.5]} 31... Rxh4 {[%clk 0:01:19.1]} 32. Qc1
{[%clk 0:01:39.7]} 32... Kg6 {[%clk 0:01:16]} 33. g3 {[%clk 0:01:37.1]} 33...
Rh7 {[%clk 0:01:09.4]} 34. Rxh7 {[%clk 0:01:30.9]} 34... Qxh7 {[%clk 0:01:09.3]}
35. Qg1 {[%clk 0:01:25.9]} 35... Qh8 {[%clk 0:01:02.2]} 36. Kg2 {[%clk
0:01:18.6]} 36... Kg7 {[%clk 0:00:51.7]} 37. Kf2 {[%clk 0:01:09.6]} 37... Be7
{[%clk 0:00:49.3]} 38. Bf1 {[%clk 0:01:08.2]} 38... Qa8 {[%clk 0:00:46.1]} 39.
Be2 {[%clk 0:00:51.9]} 39... Qa2 {[%clk 0:00:45.3]} 40. Qc1 {[%clk 0:00:52.4]}
40... Ba3 {[%clk 0:00:25.3]} 41. Qh1 {[%clk 0:00:52.9]} 41... Qxb2 {[%clk
0:00:23.2]} 42. Qh4 {[%clk 0:00:52.4]} 42... Qxc3 {[%clk 0:00:17.7]} 43. Qf6+
{[%clk 0:00:51.6]} 43... Kg8 {[%clk 0:00:18.3]} 44. Qd8+ {[%clk 0:00:49.1]}
44... Bf8 {[%clk 0:00:18.5]} 45. Qxd7 {[%clk 0:00:49.4]} 45... b2 {[%clk
0:00:18.6]} 46. Qxe6+ {[%clk 0:00:49.7]} 46... Kh8 {[%clk 0:00:18.7]} 47. Qxf5
{[%clk 0:00:36.3]} 47... Bc5 {[%clk 0:00:19]} 48. Qh5+ {[%clk 0:00:34.7]} 48...
Kg8 {[%clk 0:00:18.2]} 49. Qxg4+ {[%clk 0:00:34.8]} 49... Kf7 {[%clk 0:00:16.6]}
50. Qe6+ {[%clk 0:00:33.8]} 50... Kf8 {[%clk 0:00:17]} 51. Qc8+ {[%clk
0:00:32.1]} 51... Kg7 {[%clk 0:00:16.9]} 52. Qd7+ {[%clk 0:00:30.8]} 52... Kg8
{[%clk 0:00:15.9]} 53. Qe8+ {[%clk 0:00:29.8]} 53... Kh7 {[%clk 0:00:15.3]} 54.
Qf7+ {[%clk 0:00:27.4]} 54... Kh8 {[%clk 0:00:15.9]} 55. Nf5 {[%clk 0:00:22.9]}
55... Bxe3+ {[%clk 0:00:15]} 56. Kg2 {[%clk 0:00:22.8]} 1-0

[Event "Early-Titled-Tuesday-Blitz-January-30-2024"]
[Site "Chess.com"]
[Date "2024.01.30"]
[Round "4"]
[White "vladgoncharov"]
[Black "MusicCityMaster"]
[Result "1-0"]
[WhiteElo "2636"]
[BlackElo "2437"]
[TimeControl "180+1"]
[EndTime "8:41:33 PST"]
[Termination "vladgoncharov won on time"]

1. d4 {[%clk 0:03:00.9]} 1... Nf6 {[%clk 0:02:54]} 2. c4 {[%clk 0:03:00.5]} 2...
c5 {[%clk 0:02:39]} 3. d5 {[%clk 0:02:56.7]} 3... b5 {[%clk 0:02:39]} 4. cxb5
{[%clk 0:02:56.5]} 4... a6 {[%clk 0:02:38.7]} 5. b6 {[%clk 0:02:56.5]} 5... e6
{[%clk 0:02:37.6]} 6. Nc3 {[%clk 0:02:53.1]} 6... Nxd5 {[%clk 0:02:37.5]} 7.
Nxd5 {[%clk 0:02:52.1]} 7... exd5 {[%clk 0:02:37.8]} 8. Qxd5 {[%clk 0:02:52]}
8... Nc6 {[%clk 0:02:37.8]} 9. e3 {[%clk 0:02:47.9]} 9... Be7 {[%clk 0:02:35.5]}
10. Bc4 {[%clk 0:02:46.5]} 10... O-O {[%clk 0:02:34.8]} 11. Nf3 {[%clk
0:02:46.4]} 11... Rb8 {[%clk 0:02:34.9]} 12. O-O {[%clk 0:02:45.2]} 12... Rxb6
{[%clk 0:02:34.5]} 13. b3 {[%clk 0:02:41.9]} 13... Bf6 {[%clk 0:02:22.6]} 14.
Rb1 {[%clk 0:02:28.8]} 14... d6 {[%clk 0:02:14.1]} 15. Bb2 {[%clk 0:01:49]}
15... Nb4 {[%clk 0:01:57.2]} 16. Qd2 {[%clk 0:01:47.2]} 16... Bxb2 {[%clk
0:01:46.4]} 17. Rxb2 {[%clk 0:01:41]} 17... d5 {[%clk 0:01:45.8]} 18. Be2 {[%clk
0:01:39.9]} 18... Rh6 {[%clk 0:01:38.4]} 19. Rd1 {[%clk 0:01:30.3]} 19... Be6
{[%clk 0:01:21.6]} 20. a3 {[%clk 0:01:27.5]} 20... Nc6 {[%clk 0:01:21.2]} 21.
Bxa6 {[%clk 0:01:26.8]} 21... Qa8 {[%clk 0:01:01.8]} 22. Bb5 {[%clk 0:01:24.6]}
22... Ne7 {[%clk 0:00:56.6]} 23. a4 {[%clk 0:01:20.5]} 23... Bg4 {[%clk
0:00:46.1]} 24. Be2 {[%clk 0:01:17.6]} 24... Qb8 {[%clk 0:00:42.7]} 25. g3
{[%clk 0:01:11.7]} 25... Re8 {[%clk 0:00:32.5]} 26. b4 {[%clk 0:01:08.8]} 26...
c4 {[%clk 0:00:28.4]} 27. Nd4 {[%clk 0:01:06.3]} 27... Qc8 {[%clk 0:00:24.4]}
28. b5 {[%clk 0:00:52.2]} 28... Bxe2 {[%clk 0:00:20.2]} 29. Qxe2 {[%clk
0:00:50.6]} 29... Qh3 {[%clk 0:00:19.6]} 30. f3 {[%clk 0:00:46.1]} 30... Ng6
{[%clk 0:00:16.9]} 31. Qg2 {[%clk 0:00:42.8]} 31... Qd7 {[%clk 0:00:15.7]} 32.
Qf2 {[%clk 0:00:33.5]} 32... Ne5 {[%clk 0:00:14.9]} 33. Rbd2 {[%clk 0:00:30.5]}
33... Nd3 {[%clk 0:00:13.4]} 34. Qe2 {[%clk 0:00:27.9]} 34... Qh3 {[%clk
0:00:09.5]} 35. Rxd3 {[%clk 0:00:22]} 35... cxd3 {[%clk 0:00:10.4]} 36. Qg2
{[%clk 0:00:22.6]} 36... Qd7 {[%clk 0:00:09]} 37. Rxd3 {[%clk 0:00:22]} 37...
Rc8 {[%clk 0:00:08.4]} 38. g4 {[%clk 0:00:19.5]} 38... Rc1+ {[%clk 0:00:08]} 39.
Kf2 {[%clk 0:00:19.6]} 39... Qd6 {[%clk 0:00:07.7]} 40. f4 {[%clk 0:00:19.5]}
40... Qb4 {[%clk 0:00:06.9]} 41. g5 {[%clk 0:00:17.6]} 41... Qe1+ {[%clk
0:00:06.9]} 42. Kf3 {[%clk 0:00:16.7]} 42... Rh4 {[%clk 0:00:05.7]} 43. Nf5
{[%clk 0:00:12.7]} 43... Rc2 {[%clk 0:00:03.2]} 44. Qxc2 {[%clk 0:00:10.5]}
44... Rh3+ {[%clk 0:00:02.5]} 45. Ng3 {[%clk 0:00:10.1]} 45... Qh1+ {[%clk
0:00:01.8]} 46. Kg4 {[%clk 0:00:09.3]} 1-0

[Event "Early-Titled-Tuesday-Blitz-January-30-2024"]
[Site "Chess.com"]
[Date "2024.01.30"]
[Round "4"]
[White "Arlo2024"]
[Black "Juicy_Fork"]
[Result "0-1"]
[WhiteElo "2296"]
[BlackElo "2444"]
[TimeControl "180+1"]
[EndTime "8:41:33 PST"]
[Termination "Juicy_Fork won on time"]

1. e4 {[%clk 0:03:00.9]} 1... e5 {[%clk 0:02:55.4]} 2. Nf3 {[%clk 0:03:00.4]}
2... Nc6 {[%clk 0:02:55.5]} 3. Bc4 {[%clk 0:03:00.4]} 3... Nf6 {[%clk
0:02:54.1]} 4. d4 {[%clk 0:02:59.2]} 4... exd4 {[%clk 0:02:53.1]} 5. O-O {[%clk
0:02:59.8]} 5... Nxe4 {[%clk 0:02:52.5]} 6. Re1 {[%clk 0:02:59.9]} 6... d5
{[%clk 0:02:50]} 7. Bxd5 {[%clk 0:03:00.7]} 7... Qxd5 {[%clk 0:02:50.9]} 8. Nc3
{[%clk 0:03:00.5]} 8... Qa5 {[%clk 0:02:51.5]} 9. Nxe4 {[%clk 0:03:00.8]} 9...
Be6 {[%clk 0:02:52.2]} 10. Neg5 {[%clk 0:03:01.3]} 10... O-O-O {[%clk
0:02:52.6]} 11. Nxe6 {[%clk 0:03:01.9]} 11... fxe6 {[%clk 0:02:53.5]} 12. Rxe6
{[%clk 0:03:02]} 12... Be7 {[%clk 0:02:54.2]} 13. Ne5 {[%clk 0:03:00.9]} 13...
Nxe5 {[%clk 0:02:54.3]} 14. Rxe7 {[%clk 0:03:01.2]} 14... Rhe8 {[%clk
0:02:54.9]} 15. Bd2 {[%clk 0:02:55.3]} 15... Qd5 {[%clk 0:02:46.4]} 16. Rxg7
{[%clk 0:02:54.2]} 16... Rg8 {[%clk 0:02:43.6]} 17. Rg3 {[%clk 0:02:53.7]} 17...
Nc4 {[%clk 0:02:27.4]} 18. b3 {[%clk 0:02:41.6]} 18... Nd6 {[%clk 0:02:24.8]}
19. Qf3 {[%clk 0:01:41.8]} 19... Qxf3 {[%clk 0:02:03.3]} 20. Rxf3 {[%clk
0:01:26.3]} 20... Ne4 {[%clk 0:02:03.3]} 21. Rd1 {[%clk 0:01:21.2]} 21... Rde8
{[%clk 0:01:59]} 22. Kf1 {[%clk 0:01:00.2]} 22... c5 {[%clk 0:01:51.5]} 23. c3
{[%clk 0:00:56.7]} 23... Rd8 {[%clk 0:01:45.6]} 24. Rd3 {[%clk 0:00:47.4]} 24...
dxc3 {[%clk 0:01:36]} 25. Bc1 {[%clk 0:00:37.5]} 25... c2 {[%clk 0:01:11.7]} 26.
Rxd8+ {[%clk 0:00:34.9]} 26... Rxd8 {[%clk 0:01:02.8]} 27. Rxd8+ {[%clk
0:00:34.5]} 27... Kxd8 {[%clk 0:01:03.4]} 28. Ke2 {[%clk 0:00:30.1]} 28... Kd7
{[%clk 0:00:42.9]} 29. a3 {[%clk 0:00:27.2]} 29... b5 {[%clk 0:00:41.3]} 30. f3
{[%clk 0:00:27.6]} 30... Nd6 {[%clk 0:00:31.7]} 31. Kd3 {[%clk 0:00:27.2]} 31...
Nf5 {[%clk 0:00:31.8]} 32. g3 {[%clk 0:00:20.5]} 32... Nd4 {[%clk 0:00:31.1]}
33. Be3 {[%clk 0:00:16.7]} 33... Ke6 {[%clk 0:00:26]} 34. Kd2 {[%clk 0:00:12.9]}
34... Nxf3+ {[%clk 0:00:05.7]} 35. Kxc2 {[%clk 0:00:13]} 35... Kd5 {[%clk
0:00:05.9]} 36. Kd3 {[%clk 0:00:11.2]} 36... Nxh2 {[%clk 0:00:05.8]} 37. Bf4
{[%clk 0:00:10.2]} 37... Ng4 {[%clk 0:00:06.3]} 38. Bb8 {[%clk 0:00:08.8]} 38...
a6 {[%clk 0:00:06.5]} 39. Ba7 {[%clk 0:00:08.1]} 39... h5 {[%clk 0:00:06.3]} 40.
Bb8 {[%clk 0:00:08.1]} 40... Nf2+ {[%clk 0:00:05.4]} 41. Ke3 {[%clk 0:00:06.9]}
41... Ng4+ {[%clk 0:00:04.8]} 42. Kf4 {[%clk 0:00:07]} 42... c4 {[%clk
0:00:05.4]} 43. bxc4+ {[%clk 0:00:07]} 43... bxc4 {[%clk 0:00:06.3]} 44. Kg5
{[%clk 0:00:04.9]} 44... Ke4 {[%clk 0:00:06.7]} 45. Bf4 {[%clk 0:00:05.1]} 45...
Ne3 {[%clk 0:00:06.7]} 0-1